fUST/lending_fUST_20250925
["ID","MTS","AMOUNT","RATE_DAILY","PERIOD"]
[387469314,1758737444977,-115340.31733134,0.00019352,2]
[387469316,1758737444989,-136669.75963387,0.00019352,2]
[387469414,1758737446195,-646.41535411,0.00019177,2]
[387469416,1758737446205,-646.41535411,0.00019177,2]
[387469419,1758737446220,-646.41535411,0.00019177,2]
[387469420,1758737446229,-646.41535411,0.00019177,2]
[387469422,1758737446238,-646.41535411,0.00019177,2]
[387469425,1758737446249,-646.41535411,0.00019177,2]
[387469427,1758737446258,-74.41717702,0.00019177,2]
[387469437,1758737446357,-571.99817709,0.00019177,2]
[387469439,1758737446367,-585.50182241,0.00019177,2]
[387469707,1758737611044,10000.0,0.00018376,2]
[387469710,1758738063712,300.0,0.00019175,2]
[387469711,1758738139263,1200.0,0.00019175,2]
[387469712,1758738301688,300.0,0.00019175,2]
[387469713,1758738302614,300.0,0.00019175,2]
[387469714,1758738302942,300.0,0.00019175,2]
[387469715,1758738302974,300.0,0.00019175,2]
[387469721,1758738445873,666.0,0.00018202,2]
[387469722,1758738472117,13968.63908912,0.00018,2]
[387469723,1758738484436,35019.0350367,0.00018347,2]
[387469726,1758738515650,17798.46023025,0.00017,2]
[387469727,1758738518091,2432.14031286,0.00015,2]
[387469729,1758738593401,14703.1892097,0.00018202,2]
[387469759,1758738638264,-300.0,0.00019176,2]
[387469760,1758738638274,-1200.0,0.00019176,2]
[387469761,1758738638283,-21473.96614781,0.00019177,2]
[387469762,1758738638295,-3191.35558754,0.00019177,2]
[387469763,1758738638304,-155.0,0.00019177,2]
[387469764,1758738638313,-500.0,0.00019177,2]
[387469765,1758738638322,-15.12423842,0.00019177,2]
[387469766,1758738638336,-484.87576158,0.00019177,2]
[387469767,1758738638346,-500.0,0.00019177,2]
[387469768,1758738638355,-500.0,0.00019177,2]
[387469769,1758738638365,-500.0,0.00019177,2]
[387469770,1758738638374,-500.0,0.00019177,2]
[387469772,1758738638384,-500.0,0.00019177,2]
[387469773,1758738638393,-500.0,0.00019177,2]
[387469774,1758738638402,-500.0,0.00019177,2]
[387469775,1758738638411,-500.0,0.00019177,2]
[387469776,1758738638421,-316.57247663,0.00019177,2]
[387469777,1758738638431,-500.0,0.00019177,2]
[387469778,1758738638440,-500.0,0.00019177,2]
[387469779,1758738638450,-500.0,0.00019177,2]
[387469780,1758738638459,-500.0,0.00019177,2]
[387469781,1758738638468,-152.17022402,0.00019177,2]
[387469782,1758738638478,-460.96307449,0.00019177,2]
[387469783,1758738638487,-500.0,0.00019177,2]
[387469784,1758738638497,-500.0,0.00019177,2]
[387469785,1758738638506,-500.0,0.00019177,2]
[387469786,1758738638516,-500.0,0.00019177,2]
[387469787,1758738638526,-500.0,0.00019177,2]
[387469788,1758738638537,-500.0,0.00019177,2]
[387469789,1758738638547,-500.0,0.00019177,2]
[387469790,1758738638557,-179.14200563,0.00019177,2]
[387469791,1758738638566,-480.0,0.00019178,2]
[387469792,1758738638576,-480.0,0.00019178,2]
[387469793,1758738638585,-480.0,0.00019178,2]
[387469794,1758738638599,-480.0,0.00019178,2]
[387469795,1758738638608,-413.12437651,0.00019178,2]
[387469796,1758738638617,-480.0,0.00019178,2]
[387469797,1758738638627,-360.67986751,0.00019178,2]
[387469798,1758738638637,-480.0,0.00019178,2]
[387469799,1758738638646,-480.0,0.00019178,2]
[387469800,1758738638656,-500.0,0.00019178,2]
[387469801,1758738638667,-500.0,0.00019178,2]
[387469802,1758738638676,-519.98,0.00019178,2]
[387469803,1758738638685,-480.0,0.00019178,2]
[387469804,1758738638695,-480.0,0.00019178,2]
[387469805,1758738638704,-609.75553446,0.00019178,2]
[387469806,1758738638714,-480.0,0.00019178,2]
[387469807,1758738638723,-480.0,0.00019178,2]
[387469808,1758738638733,-480.0,0.00019178,2]
[387469809,1758738638742,-297.36297396,0.00019178,2]
[387469810,1758738638752,-480.0,0.00019178,2]
[387469811,1758738638761,-480.0,0.00019178,2]
[387469812,1758738638771,-480.0,0.00019178,2]
[387469813,1758738638780,-480.0,0.00019178,2]
[387469814,1758738638790,-480.0,0.00019178,2]
[387469815,1758738638799,-480.0,0.00019178,2]
[387469816,1758738638809,-500.0,0.00019178,2]
[387469817,1758738638819,-480.0,0.00019178,2]
[387469818,1758738638829,-480.0,0.00019178,2]
[387469819,1758738638838,-480.0,0.00019178,2]
[387469820,1758738638848,-480.0,0.00019178,2]
[387469821,1758738638858,-243.64874245,0.00019178,2]
[387469822,1758738638868,-512.90134597,0.00019178,2]
[387469823,1758738638878,-480.0,0.00019178,2]
[387469824,1758738638888,-480.0,0.00019178,2]
[387469826,1758738638909,-480.0,0.00019178,2]
[387469828,1758738638928,-480.0,0.00019178,2]
[387469831,1758738638938,-383.05487863,0.00019178,2]
[387469832,1758738638948,-480.0,0.00019178,2]
[387469833,1758738638957,-480.0,0.00019178,2]
[387469834,1758738638966,-480.0,0.00019178,2]
[387469835,1758738638976,-480.0,0.00019178,2]
[387469836,1758738638985,-480.0,0.00019178,2]
[387469837,1758738638995,-480.0,0.00019178,2]
[387469838,1758738639005,-480.0,0.00019178,2]
[387469839,1758738639014,-480.0,0.00019178,2]
[387469840,1758738639023,-483.996343,0.00019178,2]
[387469841,1758738639033,-480.0,0.00019178,2]
[387469842,1758738639042,-480.0,0.00019178,2]
[387469843,1758738639051,-480.0,0.00019178,2]
[387469844,1758738639061,-500.0,0.00019178,2]
[387469845,1758738639070,-500.0,0.00019178,2]
[387469846,1758738639079,-500.0,0.00019178,2]
[387469847,1758738639089,-500.0,0.00019178,2]
[387469848,1758738639099,-480.0,0.00019178,2]
[387469849,1758738639108,-480.0,0.00019178,2]
[387469850,1758738639118,-480.0,0.00019178,2]
[387469851,1758738639127,-482.9898088,0.00019178,2]
[387469852,1758738639137,-480.0,0.00019178,2]
[387469853,1758738639146,-480.0,0.00019178,2]
[387469854,1758738639155,-480.0,0.00019178,2]
[387469855,1758738639165,-480.0,0.00019178,2]
[387469856,1758738639174,-480.0,0.00019178,2]
[387469857,1758738639184,-480.0,0.00019178,2]
[387469858,1758738639193,-480.0,0.00019178,2]
[387469859,1758738639202,-480.0,0.00019178,2]
[387469860,1758738639212,-480.0,0.00019178,2]
[387469861,1758738639221,-180.35453696,0.00019178,2]
[387469862,1758738639230,-480.0,0.00019178,2]
[387469863,1758738639240,-480.0,0.00019178,2]
[387469864,1758738639249,-480.0,0.00019178,2]
[387469865,1758738639264,-480.0,0.00019178,2]
[387469866,1758738639277,-480.0,0.00019178,2]
[387469867,1758738639286,-480.0,0.00019178,2]
[387469868,1758738639296,-480.0,0.00019178,2]
[387469869,1758738639305,-480.0,0.00019178,2]
[387469870,1758738639315,-480.0,0.00019178,2]
[387469871,1758738639324,-480.0,0.00019178,2]
[387469872,1758738639335,-480.0,0.00019178,2]
[387469873,1758738639344,-480.0,0.00019178,2]
[387469874,1758738639353,-480.0,0.00019178,2]
[387469875,1758738639363,-480.0,0.00019178,2]
[387469876,1758738639372,-480.0,0.00019178,2]
[387469877,1758738639381,-480.0,0.00019178,2]
[387469878,1758738639391,-480.0,0.00019178,2]
[387469879,1758738639400,-480.0,0.00019178,2]
[387469880,1758738639409,-480.0,0.00019178,2]
[387469881,1758738639419,-480.0,0.00019178,2]
[387469882,1758738639428,-459.03,0.00019178,2]
[387469883,1758738639438,-480.0,0.00019178,2]
[387469884,1758738639447,-498.35,0.00019178,2]
[387469885,1758738639456,-481.50609547,0.00019178,2]
[387469886,1758738639465,-480.0,0.00019178,2]
[387469887,1758738639474,-480.0,0.00019178,2]
[387469888,1758738639483,-480.0,0.00019178,2]
[387469889,1758738639493,-191.96,0.00019178,2]
[387469890,1758738639502,-480.0,0.00019178,2]
[387469891,1758738639511,-480.0,0.00019178,2]
[387469892,1758738639521,-205.48969776,0.00019178,2]
[387469893,1758738639531,-251.1,0.00019178,2]
[387469894,1758738639540,-480.0,0.00019178,2]
[387469895,1758738639550,-480.0,0.00019178,2]
[387469896,1758738639560,-480.0,0.00019178,2]
[387469897,1758738639569,-480.0,0.00019178,2]
[387469898,1758738639578,-480.0,0.00019178,2]
[387469899,1758738639589,-480.0,0.00019178,2]
[387469900,1758738639600,-480.0,0.00019178,2]
[387469901,1758738639610,-480.0,0.00019178,2]
[387469902,1758738639620,-597.28,0.00019178,2]
[387469903,1758738639629,-482.06704232,0.00019178,2]
[387469904,1758738639640,-480.0,0.00019178,2]
[387469905,1758738639649,-480.0,0.00019178,2]
[387469906,1758738639660,-480.0,0.00019178,2]
[387469907,1758738639669,-480.0,0.00019178,2]
[387469908,1758738639680,-480.0,0.00019178,2]
[387469909,1758738639689,-480.0,0.00019178,2]
[387469910,1758738639698,-480.0,0.00019178,2]
[387469911,1758738639708,-480.0,0.00019178,2]
[387469912,1758738639717,-491.42670829,0.00019178,2]
[387469913,1758738639727,-480.0,0.00019178,2]
[387469914,1758738639737,-480.0,0.00019178,2]
[387469915,1758738639747,-480.0,0.00019178,2]
[387469917,1758738639757,-480.0,0.00019178,2]
[387469918,1758738639766,-480.0,0.00019178,2]
[387469919,1758738639776,-480.0,0.00019178,2]
[387469920,1758738639785,-480.0,0.00019178,2]
[387469921,1758738639795,-373.44,0.00019178,2]
[387469922,1758738639805,-232.3399632,0.00019178,2]
[387469923,1758738639814,-480.0,0.00019178,2]
[387469924,1758738639823,-480.0,0.00019178,2]
[387469925,1758738639833,-452.31096039,0.00019178,2]
[387469926,1758738639842,-480.0,0.00019178,2]
[387469927,1758738639852,-480.0,0.00019178,2]
[387469928,1758738639862,-480.0,0.00019178,2]
[387469929,1758738639871,-480.0,0.00019178,2]
[387469930,1758738639881,-480.0,0.00019178,2]
[387469931,1758738639891,-480.0,0.00019178,2]
[387469932,1758738639900,-480.0,0.00019178,2]
[387469933,1758738639909,-480.0,0.00019178,2]
[387469934,1758738639919,-480.0,0.00019178,2]
[387469935,1758738639928,-480.0,0.00019178,2]
[387469936,1758738639937,-480.0,0.00019178,2]
[387469937,1758738639947,-480.0,0.00019178,2]
[387469938,1758738639956,-480.0,0.00019178,2]
[387469939,1758738639966,-480.0,0.00019178,2]
[387469940,1758738639975,-480.0,0.00019178,2]
[387469941,1758738639985,-480.0,0.00019178,2]
[387469942,1758738639994,-480.0,0.00019178,2]
[387469943,1758738640003,-480.0,0.00019178,2]
[387469944,1758738640013,-480.0,0.00019178,2]
[387469946,1758738640023,-480.0,0.00019178,2]
[387469948,1758738640031,-480.0,0.00019178,2]
[387469949,1758738640041,-480.0,0.00019178,2]
[387469950,1758738640050,-480.0,0.00019178,2]
[387469951,1758738640061,-480.0,0.00019178,2]
[387469952,1758738640071,-480.0,0.00019178,2]
[387469953,1758738640079,-480.0,0.00019178,2]
[387469954,1758738640089,-480.0,0.00019178,2]
[387469955,1758738640099,-480.0,0.00019178,2]
[387469956,1758738640108,-480.0,0.00019178,2]
[387469957,1758738640118,-480.0,0.00019178,2]
[387469958,1758738640127,-480.0,0.00019178,2]
[387469959,1758738640137,-500.0,0.00019178,2]
[387469960,1758738640147,-500.0,0.00019178,2]
[387469961,1758738640158,-480.0,0.00019178,2]
[387469962,1758738640167,-480.0,0.00019178,2]
[387469963,1758738640177,-480.0,0.00019178,2]
[387469964,1758738640186,-480.0,0.00019178,2]
[387469965,1758738640197,-500.0,0.00019178,2]
[387469966,1758738640206,-888.2346431,0.00019273,2]
[387469967,1758738640216,-524.43,0.00019339,3]
[387469968,1758738640225,-262.22,0.00019339,3]
[387469969,1758738640235,-262.22,0.00019339,3]
[387469970,1758738640244,-151.0,0.0001934,2]
[387469971,1758738640253,-151.0,0.0001934,2]
[387469972,1758738640262,-151.0,0.0001934,2]
[387469973,1758738640272,-151.0,0.0001934,2]
[387469974,1758738640282,-151.0,0.0001934,2]
[387469975,1758738640292,-151.0,0.0001934,2]
[387469976,1758738640302,-151.0,0.0001934,2]
[387469977,1758738640311,-151.0,0.0001934,2]
[387469978,1758738640321,-151.0,0.0001934,2]
[387469979,1758738640330,-151.0,0.0001934,2]
[387469980,1758738640340,-151.0,0.0001934,2]
[387469981,1758738640351,-1056.20403719,0.00019347,2]
[387469982,1758738640360,-500.0,0.00019347,2]
[387469983,1758738640370,-633.08152801,0.00019347,2]
[387469984,1758738640380,-1056.20403719,0.00019347,2]
[387469985,1758738640389,-1056.20403719,0.00019347,2]
[387469986,1758738640399,-1056.20403719,0.00019347,2]
[387469987,1758738640409,-490.19470612,0.00019347,2]
[387469988,1758738640418,-1056.20403719,0.00019347,2]
[387469989,1758738640427,-1056.20403719,0.00019347,2]
[387469990,1758738640436,-1056.20403719,0.00019347,2]
[387469991,1758738640450,-1056.20403719,0.00019347,2]
[387469992,1758738640460,-1056.20403719,0.00019347,2]
[387469993,1758738640474,-1056.20403719,0.00019347,2]
[387469994,1758738640483,-1056.20403719,0.00019347,2]
[387469995,1758738640493,-1056.20403719,0.00019347,2]
[387469996,1758738640502,-1056.20403719,0.00019347,2]
[387469997,1758738640512,-1056.20403719,0.00019347,2]
[387469998,1758738640521,-1056.20403719,0.00019347,2]
[387469999,1758738640531,-1056.20403719,0.00019347,2]
[387470000,1758738640540,-1056.20403719,0.00019347,2]
[387470001,1758738640550,-1056.20403719,0.00019347,2]
[387470002,1758738640560,-1056.20403719,0.00019347,2]
[387470003,1758738640570,-1056.20403719,0.00019347,2]
[387470004,1758738640580,-480.0,0.00019348,2]
[387470005,1758738640591,-480.0,0.00019348,2]
[387470006,1758738640602,-480.0,0.00019348,2]
[387470008,1758738640612,-481.54287733,0.00019348,2]
[387470010,1758738640623,-1000.0,0.00019348,2]
[387470012,1758738640634,-480.0,0.00019348,2]
[387470014,1758738640644,-480.0,0.00019348,2]
[387470016,1758738640654,-480.0,0.00019348,2]
[387470018,1758738640663,-480.0,0.00019348,2]
[387470020,1758738640674,-480.0,0.00019348,2]
[387470022,1758738640684,-480.0,0.00019348,2]
[387470024,1758738640693,-480.0,0.00019348,2]
[387470026,1758738640703,-466.1214984,0.00019348,2]
[387470028,1758738640712,-480.0,0.00019348,2]
[387470030,1758738640721,-482.18892815,0.00019348,2]
[387470032,1758738640731,-480.0,0.00019348,2]
[387470034,1758738640740,-486.02115282,0.00019348,2]
[387470036,1758738640750,-480.0,0.00019348,2]
[387470038,1758738640760,-480.0,0.00019348,2]
[387470040,1758738640769,-480.0,0.0001935,2]
[387470042,1758738640779,-480.0,0.0001935,2]
[387470044,1758738640788,-500.0,0.00019351,2]
[387470046,1758738640797,-451.33717741,0.00019351,2]
[387470048,1758738640807,-59052.93094001,0.00019352,2]
[387470050,1758738640817,-514.68386253,0.00019373,2]
[387470052,1758738640826,-500.0,0.00019373,2]
[387470054,1758738640836,-500.0,0.00019373,2]
[387470056,1758738640845,-480.0,0.00019452,2]
[387470058,1758738640855,-378.33,0.00019452,2]
[387470061,1758738640866,-480.0,0.00019452,2]
[387470063,1758738640876,-480.0,0.00019452,2]
[387470065,1758738640885,-480.0,0.00019452,2]
[387470067,1758738640895,-480.0,0.00019452,2]
[387470069,1758738640904,-377.87,0.00019452,2]
[387470071,1758738640914,-480.0,0.00019452,2]
[387470073,1758738640923,-429.71,0.00019452,2]
[387470075,1758738640932,-319.93081962,0.00019452,2]
[387470077,1758738640943,-480.0,0.00019452,2]
[387470090,1758738641054,-485.73345476,0.00019452,2]
[387470092,1758738641064,-460.65,0.00019452,2]
[387470094,1758738641073,-262.46,0.00019452,2]
[387470096,1758738641082,-480.0,0.00019452,2]
[387470098,1758738641092,-480.0,0.00019452,2]
[387470100,1758738641101,-480.0,0.00019452,2]
[387470102,1758738641110,-480.0,0.00019452,2]
[387470104,1758738641120,-480.0,0.00019452,2]
[387470106,1758738641129,-480.0,0.00019452,2]
[387470109,1758738641140,-480.0,0.00019452,2]
[387470111,1758738641150,-228.3388304,0.00019452,2]
[387470113,1758738641159,-480.0,0.00019452,2]
[387470115,1758738641168,-480.0,0.00019452,2]
[387470117,1758738641177,-484.54282179,0.00019452,2]
[387470119,1758738641187,-480.0,0.00019452,2]
[387470121,1758738641196,-480.0,0.00019452,2]
[387470123,1758738641205,-340.20104849,0.00019452,2]
[387470125,1758738641215,-471.93983905,0.00019452,2]
[387470127,1758738641224,-480.0,0.00019452,2]
[387470129,1758738641233,-333.70796609,0.00019452,2]
[387470131,1758738641243,-1500.0,0.00019597,2]
[387470132,1758738641252,-480.0,0.00019624,2]
[387470134,1758738641261,-480.0,0.00019726,2]
[387470136,1758738641271,-480.0,0.00019726,2]
[387470138,1758738641280,-534.76575564,0.00019726,2]
[387470140,1758738641289,-480.0,0.00019726,2]
[387470142,1758738641298,-480.0,0.00019726,2]
[387470144,1758738641308,-480.0,0.00019726,2]
[387470146,1758738641317,-480.0,0.00019726,2]
[387470148,1758738641326,-472.77313614,0.00019726,2]
[387470150,1758738641335,-480.0,0.00019726,2]
[387470152,1758738641344,-480.0,0.00019726,2]
[387470154,1758738641353,-480.0,0.00019726,2]
[387470156,1758738641363,-480.0,0.00019726,2]
[387470158,1758738641372,-480.0,0.00019726,2]
[387470160,1758738641381,-480.0,0.00019726,2]
[387470162,1758738641390,-480.0,0.00019726,2]
[387470164,1758738641400,-480.0,0.00019726,2]
[387470166,1758738641410,-480.0,0.00019898,2]
[387470168,1758738641419,-1754.14173069,0.000199,2]
[387470170,1758738641430,-480.0,0.0002,2]
[387470172,1758738641439,-480.0,0.0002,2]
[387470174,1758738641449,-480.0,0.0002,2]
[387470177,1758738641459,-480.0,0.0002,2]
[387470179,1758738641468,-480.0,0.0002,2]
[387470181,1758738641477,-480.0,0.0002,2]
[387470183,1758738641486,-480.0,0.0002,2]
[387470185,1758738641495,-480.0,0.0002,2]
[387470187,1758738641505,-480.0,0.0002,2]
[387470189,1758738641514,-480.0,0.0002,2]
[387470191,1758738641523,-480.0,0.0002,2]
[387470193,1758738641532,-480.0,0.0002,2]
[387470195,1758738641542,-480.0,0.0002,2]
[387470197,1758738641551,-480.0,0.00020172,2]
[387470199,1758738641560,-888.23464309,0.00020183,2]
[387470201,1758738641569,-480.0,0.00020273,2]
[387470203,1758738641579,-480.0,0.00020273,2]
[387470205,1758738641589,-480.0,0.00020273,2]
[387470206,1758738641601,-480.0,0.00020273,2]
[387470209,1758738641611,-480.0,0.00020273,2]
[387470211,1758738641620,-480.0,0.00020273,2]
[387470213,1758738641631,-357.67686449,0.00020273,2]
[387470215,1758738641642,-480.0,0.00020273,2]
[387470217,1758738641651,-480.0,0.00020273,2]
[387470219,1758738641660,-264.15,0.00020273,2]
[387470220,1758738641672,-480.0,0.00020273,2]
[387470223,1758738641683,-480.0,0.00020273,2]
[387470225,1758738641692,-532.94,0.00020273,2]
[387470227,1758738641704,-198.98,0.00020446,2]
[387470229,1758738641713,-190.71,0.00020537,2]
[387470231,1758738641723,-480.0,0.00020547,2]
[387470234,1758738641741,-480.0,0.00020547,2]
[387470236,1758738641753,-480.0,0.00020547,2]
[387470238,1758738641762,-280.57325501,0.00020547,2]
[387470240,1758738641772,-480.0,0.00020547,2]
[387470242,1758738641782,-480.0,0.00020547,2]
[387470244,1758738641791,-480.0,0.00020547,2]
[387470246,1758738641801,-480.0,0.00020547,2]
[387470248,1758738641811,-480.0,0.00020547,2]
[387470250,1758738641821,-1048.86,0.00020709,3]
[387470252,1758738641831,-524.44,0.00020709,3]
[387470254,1758738641841,-524.44,0.00020709,3]
[387470256,1758738641851,-480.0,0.00020821,2]
[387470258,1758738641860,-480.0,0.00020821,2]
[387470260,1758738641869,-480.0,0.00020821,2]
[387470263,1758738641879,-480.0,0.00020821,2]
[387470265,1758738641889,-480.0,0.00020821,2]
[387470267,1758738641898,-402.90798182,0.00020821,2]
[387470269,1758738641908,-480.0,0.00020821,2]
[387470271,1758738641918,-480.0,0.00020821,2]
[387470273,1758738641927,-420.0,0.00020898,2]
[387470275,1758738641937,-1754.14173045,0.00020972,2]
[387470277,1758738641947,-988.0,0.00020999,2]
[387470279,1758738641958,-888.23464309,0.00021093,2]
[387470281,1758738641968,-155.0,0.00021095,2]
[387470283,1758738641978,-480.0,0.00021095,2]
[387470285,1758738641988,-166.86722905,0.00021095,2]
[387470287,1758738641999,-480.0,0.00021095,2]
[387470289,1758738642008,-480.0,0.00021095,2]
[387470291,1758738642017,-480.0,0.00021095,2]
[387470293,1758738642027,-480.0,0.00021095,2]
[387470295,1758738642037,-480.0,0.00021095,2]
[387470298,1758738642046,-160.0,0.00021125,2]
[387470300,1758738642057,-480.0,0.00021369,2]
[387470302,1758738642067,-519.72,0.00021369,2]
[387470304,1758738642076,-480.0,0.00021369,2]
[387470306,1758738642085,-480.0,0.00021369,2]
[387470308,1758738642094,-480.0,0.00021369,2]
[387470310,1758738642103,-480.0,0.00021369,2]
[387470312,1758738642113,-480.0,0.00021643,2]
[387470314,1758738642122,-480.0,0.00021643,2]
[387470316,1758738642132,-617.48941345,0.00021643,2]
[387470318,1758738642141,-480.0,0.00021643,2]
[387470320,1758738642151,-601.15,0.00021643,2]
[387470322,1758738642161,-260.0,0.00021673,2]
[387470324,1758738642170,-160.0,0.00021794,2]
[387470326,1758738642180,-160.0,0.00021794,2]
[387470327,1758738642190,-160.0,0.00021794,2]
[387470328,1758738642199,-233.62170814,0.00021794,2]
[387470329,1758738642209,-532.2324375,0.00021794,2]
[387470330,1758738642219,-160.0,0.00021794,2]
[387470331,1758738642228,-500.0,0.00021917,2]
[387470332,1758738642238,-500.0,0.00021917,2]
[387470333,1758738642247,-500.0,0.00021917,2]
[387470334,1758738642257,-407.85891231,0.00021917,2]
[387470335,1758738642267,-480.0,0.00021917,2]
[387470336,1758738642277,-480.0,0.00021917,2]
[387470337,1758738642287,-480.0,0.00021917,2]
[387470338,1758738642297,-480.0,0.00021917,2]
[387470339,1758738642306,-480.0,0.00021917,2]
[387470340,1758738642316,-480.0,0.00021917,2]
[387470341,1758738642326,-480.0,0.00021917,2]
[387470342,1758738642336,-480.0,0.00021917,2]
[387470343,1758738642346,-480.0,0.00021917,2]
[387470344,1758738642356,-480.0,0.00021917,2]
[387470345,1758738642366,-246.12764394,0.00021917,2]
[387470346,1758738642375,-480.0,0.00021917,2]
[387470347,1758738642385,-480.0,0.00021917,2]
[387470348,1758738642395,-215.42000619,0.00021917,2]
[387470349,1758738642404,-290.0,0.00022,2]
[387470350,1758738642414,-888.23464309,0.00022003,2]
[387470351,1758738642424,-1754.14173045,0.00022044,2]
[387470352,1758738642433,-480.0,0.00022191,2]
[387470353,1758738642443,-480.0,0.00022191,2]
[387470355,1758738642453,-360.0,0.00022221,2]
[387470357,1758738642462,-500.0,0.00022385,2]
[387470358,1758738642471,-500.0,0.00022385,2]
[387470361,1758738642481,-500.0,0.00022385,2]
[387470363,1758738642491,-500.0,0.00022385,2]
[387470364,1758738642500,-500.0,0.00022385,2]
[387470366,1758738642509,-500.0,0.00022385,2]
[387470368,1758738642518,-381.41,0.00022404,2]
[387470370,1758738642527,-480.0,0.00022465,2]
[387470372,1758738642537,-480.0,0.00022465,2]
[387470374,1758738642546,-480.0,0.00022739,2]
[387470376,1758738642555,-480.0,0.00022739,2]
[387470378,1758738642565,-460.0,0.00022769,2]
[387470380,1758738642575,-587.0,0.00022775,2]
[387470382,1758738642585,-888.23464309,0.00022913,2]
[387470385,1758738642599,-527.39052683,0.00022933,2]
[387470387,1758738642608,-906.28539915,0.00022933,2]
[387470389,1758738642619,-501.11660757,0.00022933,2]
[387470391,1758738642628,-1000.0,0.00022933,2]
[387470393,1758738642638,-1000.0,0.00022933,2]
[387470395,1758738642648,-330.8056317,0.00022973,2]
[387470397,1758738642657,-610124.399999,0.00023,2]
[387470399,1758738642669,-480.0,0.00023013,2]
[387470401,1758738642678,-210.67,0.00023013,2]
[387470403,1758738642687,-1754.14173045,0.00023116,2]
[387470405,1758738642696,-499.83023207,0.00023187,2]
[387470407,1758738642706,-480.0,0.00023287,2]
[387470409,1758738642715,-695.05,0.00023287,2]
[387470411,1758738642724,-560.0,0.00023317,2]
[387470413,1758738642734,-1500.0,0.00023481,2]
[387470415,1758738642743,-480.0,0.00023561,2]
[387470417,1758738642753,-480.0,0.00023835,2]
[387470419,1758738642763,-660.0,0.00023865,2]
[387470421,1758738642772,-250.0,0.00023914,2]
[387470423,1758738642781,-2000.0,0.00024028,2]
[387470426,1758738642795,-244.145,0.00024033,5]
[387470428,1758738642805,-480.0,0.00024109,2]
[387470430,1758738642814,-1754.14173045,0.00024187,2]
[387470432,1758738642824,-572.12,0.00024271,2]
[387470434,1758738642834,-480.0,0.00024383,2]
[387470436,1758738642844,-2500.0,0.00024576,2]
[387470438,1758738642856,-480.0,0.00024657,2]
[387470440,1758738642867,-380.0,0.00024658,2]
[387470443,1758738642877,-56349.0199407,0.00024818,2]
[387470446,1758738642886,-823.0,0.0002482,2]
[387470448,1758738642896,-4398.28,0.000249,2]
[387470450,1758738642906,-287191.25994354,0.000249,2]
[387470453,1758738642927,-231031.36810146,0.000249,2]
[387470456,1758738642937,-151.0,0.000249,7]
[387470459,1758738642947,-176.261188,0.000249,7]
[387470461,1758738642957,-151.0,0.000249,7]
[387470463,1758738642967,-288.459583,0.000249,7]
[387470465,1758738642976,-151.0,0.000249,7]
[387470467,1758738642986,-155.86,0.000249,7]
[387470469,1758738642996,-155.86,0.000249,7]
[387470471,1758738643005,-155.86,0.000249,7]
[387470474,1758738643016,-163.284195,0.000249,7]